[Event "2nd Hersonissos Open 2018"]
[Site "Hersonissos"]
[Date "2018.06.17"]
[Round "1"]
[White "Hommeles, Theo"]
[Black "Dagkonaki, Aspasia"]
[Result "1-0"]
[ECO "C10"]
[WhiteElo "2361"]
[BlackElo "1538"]
[Annotator "NA"]
[PlyCount "45"]
[EventDate "2018.06.16"]
[EventType "swiss"]
[EventCountry "GRE"]
[SourceTitle "playchess.com"]
[Source "ChessBase"]
[SourceQuality "1"]
[TimeControl "5400+30"]

1. d4 {[%emt 0:00:00]} d5 {[%emt 0:00:18]} 2. e4 {[%emt 0:00:00]} e6 {[%emt 0:00:28]} 3. Nc3 {[%emt 0:00:08]} b6 {[%emt 0:05:59]} 4. Bd3 {[%emt 0:05:49]} Bb7 {[%emt 0:02:05]} 5. exd5 {[%emt 0:00:14]} Nf6 {[%emt 0:06:58]} 6. Bb5+ {[%emt 0:18:49]} Nfd7 {[%emt 0:13:39]} 7. Qf3 {[%emt 0:12:38]} a6 {[%emt 0:08:18]} 8. Bc6 {[%emt 0:02:19]} Bxc6 {[%emt 0:03:25]} 9. dxc6 {[%emt 0:00:10]} Nf6 {[%emt 0:00:07]} 10. Nge2 {[%emt 0:00:43]} Be7 {[%emt 0:15:21]} 11. Bf4 {[%emt 0:03:20]} Bd6 {[%emt 0:01:31]} 12. O-O-O {[%emt 0:01:26]} Bxf4+ {[%emt 0:01:17]} 13. Nxf4 {[%emt 0:00:38]} Qd6 {[%emt 0:00:33]} 14. d5 $18 {[%emt 0:01:51]} O-O {[%emt 0:08:15]} 15. dxe6 {[%emt 0:06:16]} Qxc6 {[%emt 0:01:22]} 16. exf7+ {[%emt 0:00:08]} Kxf7 {[%emt 0:01:59]} 17. Ncd5 {[%emt 0:03:59]} Re8 {[%emt 0:05:58]} 18. Rd3 {[%emt 0:07:06]} Ra7 {[%emt 0:04:10]} 19. Rhd1 {[%emt 0:05:49]} Qa4 {[%emt 0:03:40]} 20. Nxf6 {[%emt 0:01:39]} gxf6 {[%emt 0:01:24]} 21. Qh5+ {[%emt 0:01:15]} Kf8 {[%emt 0:02:30]} 22. Qh6+ {[%emt 0:00:17]} Kg8 {[%emt 0:01:37]} 23. Rg3+ {[%emt 0:00:08]} 1-0

[Event "2nd Hersonissos Open 2018"]
[Site "Hersonissos"]
[Date "2018.06.17"]
[Round "1"]
[White "Risting, Eivind Olav"]
[Black "Magoulianos, Nikolaos"]
[Result "1-0"]
[ECO "D35"]
[WhiteElo "2301"]
[BlackElo "1434"]
[Annotator "NA"]
[PlyCount "91"]
[EventDate "2018.06.16"]
[EventType "swiss"]
[EventCountry "GRE"]
[SourceTitle "playchess.com"]
[Source "ChessBase"]
[SourceQuality "1"]
[TimeControl "5400+30"]

1. d4 {[%emt 0:00:00]} d5 {[%emt 0:00:07]} 2. c4 {[%emt 0:00:00]} e6 {[%emt 0:00:06]} 3. Nc3 {[%emt 0:00:00]} Nf6 {[%emt 0:00:07]} 4. cxd5 {[%emt 0:00:00]} exd5 {[%emt 0:00:07]} 5. Bg5 {[%emt 0:00:03]} Be7 {[%emt 0:00:39]} 6. Qc2 {[%emt 0:00:17]} Be6 {[%emt 0:02:09]} 7. e3 {[%emt 0:00:34] D35: Queen's Gambit Declined: Exchange Variation} Nbd7 {[%emt 0:01:55]} 8. Bd3 {[%emt 0:00:27]} c5 {[%emt 0:03:48]} 9. dxc5 {[%emt 0:00:45]} Nxc5 {[%emt 0:00:38]} 10. Nge2 $146 {[%emt 0:01:02]} ({Predecessor:} 10. Bb5+ Kf8 11. Nge2 Rc8 12. O-O Nfe4 13. Bf4 Nxc3 14. Nxc3 Ne4 {1-0 (54) Kovacs,J (2041)-Hrnciar,R (2081) Slovakia 2013}) 10... O-O {[%emt 0:10:47]} 11. O-O {[%emt 0:00:16]} h6 {[%emt 0:01:57]} 12. Bh4 {[%emt 0:00:31]} Rc8 {[%emt 0:00:54]} 13. Rfd1 {[%emt 0:00:38]} Qc7 {[%emt 0:07:18]} 14. Rac1 {[%emt 0:06:15]} Rfd8 {[%emt 0:11:46]} 15. Qb1 {[%emt 0:06:07]} Nxd3 {[%emt 0:04:40]} 16. Qxd3 {[%emt 0:01:01]} Qc4 {[%emt 0:01:43]} 17. Bg3 {[%emt 0:02:01]} Ne4 {[%emt 0:05:37]} 18. Be5 {[%emt 0:04:28]} Qxd3 {[%emt 0:07:54]} 19. Rxd3 {[%emt 0:00:08]} Bf6 {[%emt 0:01:00]} 20. Bxf6 {[%emt 0:00:55]} Nxf6 {[%emt 0:00:07]} 21. Rcd1 {[%emt 0:01:09]} Rd7 {[%emt 0:03:18]} 22. f3 {[%emt 0:00:56]} Bf5 {[%emt 0:07:07]} 23. Rd4 {[%emt 0:00:44]} Re7 {[%emt 0:01:03]} 24. Nxd5 {[%emt 0:04:22]} Nxd5 $14 {[%emt 0:00:23]} 25. Rxd5 {[%emt 0:00:07]} Rxe3 {[%emt 0:00:59]} 26. Kf2 {[%emt 0:02:43]} Rce8 {[%emt 0:00:18]} 27. Nc3 {[%emt 0:01:29]} R3e5 {[%emt 0:03:35]} 28. Rxe5 {[%emt 0:07:31]} Rxe5 {[%emt 0:00:06]} 29. g4 {[%emt 0:00:11]} Be6 {[%emt 0:01:32]} 30. f4 {[%emt 0:01:19]} Ra5 {[%emt 0:00:42]} 31. f5 {[%emt 0:02:02]} Bc4 {[%emt 0:01:08]} 32. b3 {[%emt 0:13:21]} Ba6 {[%emt 0:00:18]} 33. Rd8+ {[%emt 0:00:05]} Kh7 {[%emt 0:00:07]} 34. b4 {[%emt 0:13:36]} Ra3 {[%emt 0:04:02]} 35. Rc8 {[%emt 0:00:12]} b6 {[%emt 0:01:45]} 36. Rc7 {[%emt 0:00:07]} Bd3 {[%emt 0:01:21]} 37. Ke3 {[%emt 0:04:10]} Bb1 {[%emt 0:01:38]} 38. Kd2 {[%emt 0:00:29]} Bxa2 {[%emt 0:03:48]} 39. Kc2 {[%emt 0:00:17]} a5 {[%emt 0:05:09]} 40. b5 {[%emt 0:00:00]} Rb3 {[%emt 0:00:00]} 41. Nxa2 {[%emt 0:00:00]} Rxb5 {[%emt 0:00:00]} 42. Rxf7 {[%emt 0:00:00]} Rc5+ {[%emt 0:00:00]} 43. Nc3 {[%emt 0:00:00]} b5 {[%emt 0:00:00]} 44. Kd3 {[%emt 0:00:00]} Rc4 {[%emt 0:00:00]} 45. Ne4 {[%emt 0:00:00]} Rc6 {[%emt 0:00:00]} 46. f6 {[%emt 0:00:00]} 1-0

[Event "2nd Hersonissos Open 2018"]
[Site "Hersonissos"]
[Date "2018.06.17"]
[Round "1"]
[White "Djingarova, Emilia"]
[Black "Ergazaki, Eirini"]
[Result "1-0"]
[ECO "D00"]
[WhiteElo "2218"]
[BlackElo "1348"]
[Annotator "NA"]
[PlyCount "59"]
[EventDate "2018.06.16"]
[EventType "swiss"]
[EventCountry "GRE"]
[SourceTitle "playchess.com"]
[Source "ChessBase"]
[SourceQuality "1"]
[TimeControl "5400+30"]

1. d4 {[%emt 0:02:04]} d5 {[%emt 0:00:07]} 2. Bf4 {[%emt 0:00:08]} Nf6 {[%emt 0:02:19]} 3. e3 {[%emt 0:01:10]} e6 {[%emt 0:03:00]} 4. Nf3 {[%emt 0:00:17]} Be7 {[%emt 0:01:33]} 5. Nbd2 {[%emt 0:01:48]} Nbd7 {[%emt 0:01:04]} 6. Bd3 {[%emt 0:00:14]} O-O {[%emt 0:01:18]} 7. Ne5 {[%emt 0:00:36] D02: 1 d4 d5 2 Nf3 sidelines, including 2...Nf6 3 g3 and 2...Nf6 3 Bf4} Nxe5 {[%emt 0:02:45]} 8. dxe5 {[%emt 0:00:54]} Nd7 {[%emt 0:00:46]} 9. Qh5 {[%emt 0:04:10]} g6 {[%emt 0:00:28]} 10. Qe2 {[%emt 0:07:09]} c5 {[%emt 0:04:25]} 11. c3 {[%emt 0:07:35]} Qc7 $146 {[%emt 0:02:52]} ({Predecessor:} 11... f6 12. exf6 Bxf6 13. Bh6 Re8 14. Nf3 Qc7 15. e4 c4 16. Bc2 b5 17. O-O {1-0 (55) Sedlak,N (2528)-Nuber,B (2324) Bayern 2015}) 12. Nf3 {[%emt 0:00:19]} Re8 {[%emt 0:00:46] [#]} 13. h4 $1 {[%emt 0:08:35]} Bf8 {[%emt 0:02:48]} ({Black should try} 13... h5 $1 $14) 14. h5 {[%emt 0:00:39]} c4 {[%emt 0:02:10]} 15. Bc2 $2 {[%emt 0:00:34]} (15. hxg6 $18 cxd3 16. gxf7+ (16. gxh7+ Kh8 $11) 16... Kxf7 17. Qxd3 (17. Rxh7+ Kg8 $18)) 15... a6 {[%emt 0:05:20]} 16. Ng5 {[%emt 0:02:35]} Bg7 {[%emt 0:04:57]} 17. Nxh7 {[%emt 0:11:27]} Nf8 {[%emt 0:10:36]} 18. Nxf8 {[%emt 0:03:29]} Kxf8 {[%emt 0:00:50]} 19. hxg6 {[%emt 0:00:13]} fxg6 {[%emt 0:01:12]} 20. Bxg6 {[%emt 0:00:07]} Re7 $18 {[%emt 0:00:08]} 21. Bg5 {[%emt 0:04:26]} Rd7 {[%emt 0:00:24]} 22. Qf3+ {[%emt 0:00:31]} Kg8 {[%emt 0:01:10]} 23. Bh7+ {[%emt 0:00:22]} Kh8 {[%emt 0:00:06]} 24. Bf5+ {[%emt 0:02:55]} Kg8 {[%emt 0:01:50]} 25. Bxe6+ {[%emt 0:00:20]} Rf7 {[%emt 0:01:20]} 26. Bxd5 {[%emt 0:00:40]} Bxe5 {[%emt 0:00:27]} 27. Qe4 {[%emt 0:03:36]} Kf8 {[%emt 0:02:03]} 28. Bxf7 {[%emt 0:00:07]} Kxf7 {[%emt 0:01:22]} 29. Rh7+ {[%emt 0:00:08]} Bg7 {[%emt 0:00:07]} 30. Bh6 {[%emt 0:00:11]} 1-0

[Event "2nd Hersonissos Open 2018"]
[Site "Hersonissos"]
[Date "2018.06.17"]
[Round "1"]
[White "Vanheirzeele, Daniel"]
[Black "Saklampanakis, Dimitrios"]
[Result "1-0"]
[ECO "D30"]
[WhiteElo "2156"]
[BlackElo "1319"]
[Annotator "NA"]
[PlyCount "61"]
[EventDate "2018.06.16"]
[EventType "swiss"]
[EventCountry "GRE"]
[SourceTitle "playchess.com"]
[Source "ChessBase"]
[SourceQuality "1"]
[TimeControl "5400+30"]

1. d4 {[%emt 0:00:00]} d5 {[%emt 0:00:07]} 2. c4 {[%emt 0:00:20]} e6 {[%emt 0:00:04]} 3. Nf3 {[%emt 0:00:06]} Nf6 {[%emt 0:00:20]} 4. g3 {[%emt 0:00:06]} Nbd7 {[%emt 0:00:21]} 5. Bg2 {[%emt 0:00:37]} b6 {[%emt 0:00:50]} 6. O-O {[%emt 0:06:14]} Ba6 {[%emt 0:02:37]} 7. Ne5 {[%emt 0:04:38]} Bd6 {[%emt 0:10:17]} 8. Qa4 {[%emt 0:06:44]} Bb7 {[%emt 0:16:25]} 9. Nc3 {[%emt 0:07:07]} O-O {[%emt 0:08:36]} 10. Nxd7 {[%emt 0:05:09]} Qxd7 $16 {[%emt 0:01:09]} 11. Qxd7 {[%emt 0:00:12]} Nxd7 {[%emt 0:00:05]} 12. cxd5 {[%emt 0:00:07]} exd5 {[%emt 0:02:22]} 13. Nxd5 {[%emt 0:02:19]} Rae8 {[%emt 0:04:48]} 14. Be3 {[%emt 0:07:17]} Ba6 {[%emt 0:02:38]} 15. Bf3 {[%emt 0:01:01]} c6 {[%emt 0:02:42]} 16. Nc3 {[%emt 0:14:15]} c5 {[%emt 0:01:33]} 17. Rfd1 {[%emt 0:05:47]} Re6 {[%emt 0:03:20]} 18. Bd5 {[%emt 0:11:38]} Re7 {[%emt 0:01:10]} 19. Bg5 {[%emt 0:01:02]} Ree8 {[%emt 0:02:42]} 20. Bc6 {[%emt 0:00:47]} Bc8 {[%emt 0:06:50]} 21. dxc5 f6 {[%emt 0:01:08]} 22. Rxd6 {[%emt 0:02:28]} fxg5 {[%emt 0:01:25]} 23. Bxd7 {[%emt 0:00:07]} Bxd7 {[%emt 0:01:06]} 24. Rxd7 {[%emt 0:00:04]} bxc5 {[%emt 0:00:10]} 25. Rxa7 {[%emt 0:01:22]} Rb8 {[%emt 0:00:10]} 26. b3 {[%emt 0:03:07]} Rf5 {[%emt 0:00:23]} 27. Rd1 {[%emt 0:00:27]} Rbf8 {[%emt 0:00:16]} 28. Rdd7 {[%emt 0:00:42]} R5f7 {[%emt 0:00:24]} 29. Rxf7 {[%emt 0:00:36]} Rxf7 {[%emt 0:00:12]} 30. Ra8+ {[%emt 0:00:03]} Rf8 {[%emt 0:00:10]} 31. Rxf8+ {[%emt 0:00:06]} 1-0

[Event "2nd Hersonissos Open 2018"]
[Site "Hersonissos"]
[Date "2018.06.17"]
[Round "1"]
[White "Serpetsidakis, Nikolaos"]
[Black "Matthaiaki, Nefeli"]
[Result "1-0"]
[ECO "D53"]
[WhiteElo "2126"]
[BlackElo "1284"]
[Annotator "NA"]
[PlyCount "59"]
[EventDate "2018.06.16"]
[EventType "swiss"]
[EventCountry "GRE"]
[SourceTitle "playchess.com"]
[Source "ChessBase"]
[SourceQuality "1"]
[TimeControl "5400+30"]

1. d4 {[%emt 0:00:00]} d5 {[%emt 0:00:10]} 2. c4 {[%emt 0:00:00]} e6 {[%emt 0:00:12]} 3. Nc3 {[%emt 0:00:00]} Nf6 {[%emt 0:00:11]} 4. Bg5 {[%emt 0:00:11]} Be7 {[%emt 0:00:13]} 5. e3 {[%emt 0:00:06]} O-O {[%emt 0:00:33]} 6. Bd3 {[%emt 0:00:08]} h6 {[%emt 0:00:20]} 7. Bh4 {[%emt 0:00:35]} Nbd7 {[%emt 0:01:10]} 8. Nf3 {[%emt 0:00:14]} b6 {[%emt 0:00:36]} 9. O-O {[%emt 0:00:11]} Bb7 {[%emt 0:00:20]} 10. Nd2 {[%emt 0:00:43]} c5 {[%emt 0:02:30]} 11. b3 {[%emt 0:00:56]} Rc8 {[%emt 0:10:07]} 12. Rc1 {[%emt 0:00:49]} Re8 {[%emt 0:26:17]} 13. Bg3 {[%emt 0:00:56]} a6 {[%emt 0:00:49]} 14. Qe2 {[%emt 0:00:46]} cxd4 {[%emt 0:08:21]} 15. exd4 {[%emt 0:00:10]} dxc4 {[%emt 0:01:43]} 16. bxc4 {[%emt 0:00:24]} Nb8 {[%emt 0:02:29]} 17. Nb3 {[%emt 0:00:39]} Bd6 {[%emt 0:08:57]} 18. Rfd1 $11 {[%emt 0:02:00]} Bxg3 {[%emt 0:06:11]} 19. hxg3 {[%emt 0:00:44]} Qe7 {[%emt 0:01:52]} 20. f4 {[%emt 0:02:07]} a5 {[%emt 0:04:30]} 21. g4 {[%emt 0:06:11]} Nc6 {[%emt 0:07:39]} 22. Nb5 {[%emt 0:04:08]} Nd7 {[%emt 0:04:41]} 23. Nd2 {[%emt 0:03:59]} Rcd8 {[%emt 0:03:19]} 24. Re1 {[%emt 0:04:14]} Ba8 {[%emt 0:01:08]} 25. Nf3 {[%emt 0:03:22]} Qf6 {[%emt 0:01:21]} 26. Qe3 {[%emt 0:01:55]} Nf8 {[%emt 0:01:10]} 27. Nc7 {[%emt 0:01:28]} Re7 {[%emt 0:00:16]} 28. Nxa8 {[%emt 0:01:33]} Rxa8 {[%emt 0:00:02]} 29. g5 {[%emt 0:00:11]} hxg5 {[%emt 0:01:43]} 30. fxg5 {[%emt 0:00:07]} 1-0

[Event "2nd Hersonissos Open 2018"]
[Site "Hersonissos"]
[Date "2018.06.17"]
[Round "1"]
[White "Umbetov, Kazybek"]
[Black "Kavouras, Kosmas"]
[Result "1-0"]
[ECO "D31"]
[WhiteElo "2001"]
[BlackElo "1184"]
[Annotator "NA"]
[PlyCount "99"]
[EventDate "2018.06.16"]
[EventType "swiss"]
[EventCountry "GRE"]
[SourceTitle "playchess.com"]
[Source "ChessBase"]
[SourceQuality "1"]
[TimeControl "5400+30"]

1. d4 {[%emt 0:00:00]} d5 {[%emt 0:00:17]} 2. c4 {[%emt 0:00:00]} c6 {[%emt 0:00:08]} 3. Nc3 {[%emt 0:00:00]} e6 {[%emt 0:00:38]} 4. e4 {[%emt 0:00:00]} Nf6 {[%emt 0:03:33]} 5. e5 {[%emt 0:00:00]} Nfd7 {[%emt 0:00:30]} 6. Nf3 {[%emt 0:00:00]} Be7 {[%emt 0:00:58] A18: English Opening: Flohr-Mikenas System (1 c4 Nf6 2 Nc3 e6 3 e4)} 7. Bd3 {[%emt 0:00:00]} (7. Be3 O-O 8. Bd3 dxc4 9. Bxc4 Nb6 10. Bd3 Nd5 11. Bc2 f6 12. exf6 Bxf6 13. h4 e5 14. Nxd5 cxd5 15. Nxe5 Bxe5 16. dxe5 {1-0 (61) Ponkratov,P (2613)-Laszczak,P (2100) Katowice 2017}) 7... b6 {[%emt 0:00:36]} 8. Be3 $146 {[%emt 0:02:23]} ({Predecessor:} 8. O-O Bb7 9. Re1 Na6 10. cxd5 cxd5 11. a3 Nc7 12. Bf4 a6 13. Qc2 h6 14. Rac1 {1-0 (39) Pedersen,C (2249)-Leimand,P (2029) Horsens 2003}) 8... Bb7 {[%emt 0:00:19]} 9. cxd5 {[%emt 0:00:07]} cxd5 {[%emt 0:00:29]} 10. Rc1 {[%emt 0:01:00]} Na6 {[%emt 0:00:26]} 11. O-O {[%emt 0:05:51]} O-O {[%emt 0:00:44]} 12. Ne2 {[%emt 0:02:14]} Nb4 {[%emt 0:00:20]} 13. Bb1 {[%emt 0:00:14]} Rc8 {[%emt 0:00:08]} 14. Rxc8 {[%emt 0:01:55]} Qxc8 {[%emt 0:00:07]} 15. a3 {[%emt 0:00:08]} Nc6 {[%emt 0:00:43]} 16. Qc2 {[%emt 0:00:35]} g6 {[%emt 0:00:43]} 17. Bh6 {[%emt 0:00:35]} Re8 {[%emt 0:00:14]} 18. Rc1 {[%emt 0:00:37]} Bf8 {[%emt 0:00:13]} 19. Be3 {[%emt 0:00:29]} Ne7 {[%emt 0:01:29]} 20. Qa4 {[%emt 0:01:04]} Nc6 {[%emt 0:02:19]} 21. h4 {[%emt 0:00:41]} b5 {[%emt 0:06:16]} 22. Qxb5 {[%emt 0:01:35]} Ba6 {[%emt 0:00:05]} 23. Qxc6 {[%emt 0:00:05]} Qxc6 {[%emt 0:00:15]} 24. Rxc6 {[%emt 0:00:03]} Bxe2 {[%emt 0:00:08]} 25. Rc7 {[%emt 0:01:09]} Bxf3 {[%emt 0:00:33]} 26. Rxd7 {[%emt 0:00:35]} Be2 {[%emt 0:02:32]} 27. Rxa7 {[%emt 0:00:09]} Bc4 {[%emt 0:00:37]} 28. Bc2 {[%emt 0:00:32]} Rb8 {[%emt 0:00:07]} 29. b3 {[%emt 0:01:07]} Bxb3 {[%emt 0:00:12]} 30. Bxb3 {[%emt 0:00:28]} Rxb3 {[%emt 0:00:52]} 31. a4 {[%emt 0:00:25]} Ra3 {[%emt 0:01:56]} 32. a5 {[%emt 0:01:26]} Kg7 {[%emt 0:00:09]} 33. g4 {[%emt 0:00:45]} h6 {[%emt 0:00:57]} 34. a6 {[%emt 0:00:17]} Bb4 {[%emt 0:00:06]} 35. Rb7 {[%emt 0:01:46]} Rxa6 {[%emt 0:10:22]} 36. Rxb4 {[%emt 0:00:02]} Rc6 {[%emt 0:00:13]} 37. Kg2 {[%emt 0:00:17]} h5 {[%emt 0:00:07]} 38. gxh5 {[%emt 0:00:20]} gxh5 {[%emt 0:00:13]} 39. Rb8 {[%emt 0:00:04]} Rc2 {[%emt 0:01:12]} 40. Kf3 {[%emt 0:00:00]} Ra2 {[%emt 0:00:00]} 41. Kf4 {[%emt 0:00:00]} Kg6 {[%emt 0:00:00]} 42. Rh8 {[%emt 0:00:00]} Ra1 {[%emt 0:00:00]} 43. Kf3 {[%emt 0:00:00]} Rh1 {[%emt 0:00:00]} 44. Rh6+ {[%emt 0:00:00]} Kg7 {[%emt 0:00:00]} 45. Rxh5 {[%emt 0:00:00]} Kg6 $18 {[%emt 0:00:00]} 46. Rh6+ {[%emt 0:00:00]} Kg7 {[%emt 0:00:00]} 47. Bg5 {[%emt 0:00:00]} Rh3+ {[%emt 0:00:00]} 48. Kg4 {[%emt 0:00:00]} Rd3 {[%emt 0:00:00]} 49. Kh5 {[%emt 0:00:00]} Rxd4 {[%emt 0:00:00]} 50. Bf6+ {[%emt 0:00:00]} 1-0

[Event "2nd Hersonissos Open 2018"]
[Site "Hersonissos"]
[Date "2018.06.17"]
[Round "1"]
[White "Sielicki, Tomasz"]
[Black "Fragkiadakis, Nikolaos Emm"]
[Result "1-0"]
[ECO "D37"]
[WhiteElo "1963"]
[BlackElo "1169"]
[Annotator "NA"]
[PlyCount "49"]
[EventDate "2018.06.16"]
[EventType "swiss"]
[EventCountry "GRE"]
[SourceTitle "playchess.com"]
[Source "ChessBase"]
[SourceQuality "1"]
[TimeControl "5400+30"]

1. d4 {[%emt 0:00:00]} d5 {[%emt 0:00:07]} 2. c4 {[%emt 0:00:03]} e6 {[%emt 0:00:14]} 3. Nc3 {[%emt 0:00:45]} Nf6 {[%emt 0:00:12]} 4. Nf3 {[%emt 0:00:31]} Nbd7 {[%emt 0:01:08]} 5. Bf4 {[%emt 0:00:51]} Bb4 {[%emt 0:01:35]} 6. Qb3 {[%emt 0:04:08]} Bxc3+ {[%emt 0:03:08]} 7. bxc3 {[%emt 0:00:32]} b6 {[%emt 0:06:59]} 8. cxd5 {[%emt 0:03:16]} exd5 {[%emt 0:03:21]} 9. e3 {[%emt 0:03:11]} Bb7 {[%emt 0:03:03]} 10. Bb5 {[%emt 0:02:30]} c6 {[%emt 0:02:28]} 11. Be2 {[%emt 0:01:08]} O-O {[%emt 0:03:13]} 12. O-O {[%emt 0:00:55]} Re8 {[%emt 0:03:07]} 13. Rac1 {[%emt 0:10:52]} h6 {[%emt 0:04:57]} 14. h3 {[%emt 0:01:37]} Ne4 {[%emt 0:03:31]} 15. c4 {[%emt 0:10:45]} Rc8 {[%emt 0:13:44]} 16. cxd5 {[%emt 0:08:06]} cxd5 {[%emt 0:00:44]} 17. Bb5 {[%emt 0:02:57]} Re7 {[%emt 0:07:48]} 18. Qa3 {[%emt 0:02:36]} a5 {[%emt 0:04:29]} 19. Rxc8 {[%emt 0:03:50]} Bxc8 {[%emt 0:01:05]} 20. Rc1 {[%emt 0:00:37]} Nf8 {[%emt 0:03:02]} 21. Rxc8 {[%emt 0:05:38]} Qxc8 {[%emt 0:01:07]} 22. Qxe7 {[%emt 0:00:15]} Qc2 {[%emt 0:01:26]} 23. Be8 {[%emt 0:03:50]} Qb1+ {[%emt 0:03:01]} 24. Kh2 {[%emt 0:00:46]} Qb4 {[%emt 0:02:01]} 25. Qxf7+ {[%emt 0:04:40]} 1-0

[Event "2nd Hersonissos Open 2018"]
[Site "Hersonissos"]
[Date "2018.06.17"]
[Round "1"]
[White "Bit-Narva, David"]
[Black "Kealar, Ioannis"]
[Result "1-0"]
[ECO "C64"]
[WhiteElo "1926"]
[BlackElo "1142"]
[Annotator "NA"]
[PlyCount "75"]
[EventDate "2018.06.16"]
[EventType "swiss"]
[EventCountry "GRE"]
[SourceTitle "playchess.com"]
[Source "ChessBase"]
[SourceQuality "1"]
[TimeControl "5400+30"]

1. e4 {[%emt 0:00:00]} e5 {[%emt 0:00:14]} 2. Nf3 {[%emt 0:00:00]} Nc6 {[%emt 0:00:12]} 3. Bb5 {[%emt 0:00:00]} Bc5 {[%emt 0:02:05]} 4. O-O {[%emt 0:00:09]} d6 {[%emt 0:01:32]} 5. c3 {[%emt 0:00:32]} Bd7 {[%emt 0:05:34]} 6. d4 {[%emt 0:00:34]} Bb6 {[%emt 0:01:57]} 7. Re1 {[%emt 0:15:08]} Nf6 {[%emt 0:02:40]} 8. a4 {[%emt 0:09:10]} a6 {[%emt 0:03:06]} 9. Bf1 {[%emt 0:02:55]} h6 {[%emt 0:08:20]} 10. h3 O-O {[%emt 0:00:17]} 11. Na3 {[%emt 0:08:04]} Ba7 {[%emt 0:06:52]} 12. d5 {[%emt 0:03:54]} Ne7 {[%emt 0:02:05]} 13. b4 {[%emt 0:01:46]} b5 {[%emt 0:06:34]} 14. Bb2 {[%emt 0:07:46]} Qb8 {[%emt 0:08:27]} 15. axb5 {[%emt 0:04:00]} axb5 {[%emt 0:00:41]} 16. Qe2 {[%emt 0:02:00]} c6 {[%emt 0:10:00]} 17. dxc6 {[%emt 0:02:53]} Bxc6 {[%emt 0:00:54]} 18. Nxb5 {[%emt 0:02:59]} Nxe4 {[%emt 0:04:18]} 19. Nxa7 {[%emt 0:00:08]} Rxa7 {[%emt 0:03:12]} 20. Rxa7 {[%emt 0:10:46]} Qxa7 {[%emt 0:01:26]} 21. Ra1 {[%emt 0:00:19]} Qb6 {[%emt 0:01:47]} 22. Ra6 {[%emt 0:00:49]} Qb7 {[%emt 0:01:47]} 23. b5 {[%emt 0:09:27]} Bd7 {[%emt 0:02:28]} 24. Qe3 {[%emt 0:04:39]} Nf5 {[%emt 0:05:44]} 25. Qa7 {[%emt 0:01:34]} Qxa7 {[%emt 0:03:07]} 26. Rxa7 {[%emt 0:00:05]} Be6 {[%emt 0:00:27]} 27. g4 {[%emt 0:01:13]} Rb8 {[%emt 0:01:51]} 28. gxf5 {[%emt 0:00:04]} Bxf5 {[%emt 0:00:28]} 29. Bc4 {[%emt 0:00:57]} Be6 {[%emt 0:00:54]} 30. Bxe6 {[%emt 0:00:23]} fxe6 {[%emt 0:00:37]} 31. c4 {[%emt 0:00:08]} Nc5 {[%emt 0:01:36]} 32. Ba3 {[%emt 0:02:14]} Rb6 {[%emt 0:02:35]} 33. Bxc5 {[%emt 0:00:06]} dxc5 {[%emt 0:00:30]} 34. Nxe5 {[%emt 0:00:08]} Rd6 {[%emt 0:01:54]} 35. Ra8+ {[%emt 0:00:34]} Kh7 {[%emt 0:00:13]} 36. Rh8+ {[%emt 0:00:09]} Kxh8 {[%emt 0:00:18]} 37. Nf7+ {[%emt 0:00:02]} Kg8 {[%emt 0:00:14]} 38. Nxd6 {[%emt 0:00:05]} 1-0

[Event "2nd Hersonissos Open 2018"]
[Site "Hersonissos"]
[Date "2018.06.17"]
[Round "1"]
[White "Mateev, Kaloyan Mateev"]
[Black "Haug, Johannes"]
[Result "0-1"]
[ECO "A45"]
[WhiteElo "1539"]
[BlackElo "2401"]
[Annotator "NA"]
[PlyCount "91"]
[EventDate "2018.06.16"]
[EventType "swiss"]
[EventCountry "GRE"]
[SourceTitle "playchess.com"]
[Source "ChessBase"]
[SourceQuality "1"]
[TimeControl "5400+30"]

1. d4 {[%emt 0:01:51]} Nf6 {[%emt 0:00:05]} 2. Bf4 {[%emt 0:00:15]} e6 {[%emt 0:00:17]} 3. e3 {[%emt 0:00:27]} b6 {[%emt 0:00:09]} 4. Nf3 {[%emt 0:00:30]} Bb7 {[%emt 0:00:11]} 5. Nbd2 {[%emt 0:00:35]} d6 {[%emt 0:01:03]} 6. Bd3 {[%emt 0:01:22]} g6 {[%emt 0:00:22] A47: 1 d4 Nf6 2 Nf3 b6: Torre, London and Colle Systems} 7. c3 {[%emt 0:01:14]} Bg7 {[%emt 0:00:11]} 8. Qc2 {[%emt 0:02:14]} Nbd7 {[%emt 0:01:10]} 9. h3 {[%emt 0:07:12]} Qe7 {[%emt 0:00:45]} 10. O-O-O $146 {[%emt 0:08:41] [#]} ({Predecessor:} 10. e4 e5 11. Bh2 O-O 12. O-O Nh5 13. Rfe1 {½-½ (57) Fernandez,D (2481)-Indjic,A (2569) Budapest 2017}) 10... e5 $1 {[%emt 0:12:48]} 11. Bg5 {[%emt 0:00:28]} e4 {[%emt 0:00:49]} 12. Nxe4 {[%emt 0:11:58]} Bxe4 {[%emt 0:00:17]} 13. Bxe4 {[%emt 0:01:04]} Qxe4 {[%emt 0:00:07]} 14. Qxe4+ {[%emt 0:07:10]} Nxe4 {[%emt 0:00:04]} 15. Bh4 {[%emt 0:00:05]} f5 {[%emt 0:00:45]} 16. Ng5 {[%emt 0:03:47]} Bf6 {[%emt 0:01:01]} 17. Nxe4 {[%emt 0:03:53]} Bxh4 {[%emt 0:00:06]} 18. Ng3 {[%emt 0:01:14]} Bxg3 {[%emt 0:00:03]} 19. fxg3 {[%emt 0:00:08]} Nf6 {[%emt 0:00:12]} 20. Rhf1 {[%emt 0:02:42]} O-O {[%emt 0:00:17]} 21. Rf3 {[%emt 0:02:05]} h5 {[%emt 0:00:23]} 22. Kc2 {[%emt 0:07:33]} Rae8 {[%emt 0:00:10]} 23. Rdf1 {[%emt 0:09:43]} Re4 {[%emt 0:00:20]} 24. Kd3 {[%emt 0:01:01]} Rfe8 {[%emt 0:00:35]} 25. Re1 {[%emt 0:03:34]} b5 {[%emt 0:00:24]} 26. Rc1 {[%emt 0:04:56]} Nd5 {[%emt 0:00:19]} 27. Re1 {[%emt 0:00:46]} c5 {[%emt 0:00:08]} 28. a3 {[%emt 0:02:32]} a5 {[%emt 0:00:32]} 29. Re2 {[%emt 0:01:45]} Kf7 {[%emt 0:01:12]} 30. Kd2 {[%emt 0:00:59]} c4 {[%emt 0:00:06]} 31. Re1 {[%emt 0:00:41]} Rb8 {[%emt 0:00:17]} 32. Rc1 {[%emt 0:00:47]} Ke6 {[%emt 0:00:13]} 33. Ke2 {[%emt 0:01:08]} g5 $19 {[%emt 0:00:25]} 34. Rcf1 {[%emt 0:01:08]} Rf8 {[%emt 0:00:07]} 35. Kd2 {[%emt 0:00:22]} g4 {[%emt 0:00:08]} 36. R3f2 {[%emt 0:04:01]} Rxe3 {[%emt 0:00:21]} 37. Re2 {[%emt 0:03:06]} Rxe2+ {[%emt 0:00:09]} 38. Kxe2 {[%emt 0:00:04]} Kf6 {[%emt 0:00:30]} 39. h4 {[%emt 0:02:40]} Re8+ {[%emt 0:00:07]} 40. Kd2 {[%emt 0:00:00]} a4 {[%emt 0:00:00]} 41. Rf2 {[%emt 0:00:00]} Re3 {[%emt 0:00:00]} 42. Re2 {[%emt 0:00:00]} Rxe2+ {[%emt 0:00:00]} 43. Kxe2 {[%emt 0:00:00]} f4 {[%emt 0:00:00]} 44. Kf2 {[%emt 0:00:00]} Kf5 {[%emt 0:00:00]} 45. gxf4 {[%emt 0:00:00]} Kxf4 {[%emt 0:00:00]} 46. g3+ {[%emt 0:00:00] Ke5} 0-1